Cogmind - Beta 14 @@@ ROGUE MODE // 2025.01.03 @ 09:32:22 // Winter2021/Sauler Player: Demo Result: Destroyed by Subdweller Shrapnel Launcher Performance ------------- Evolutions (0) 0 Regions Visited (3) 600 Robots Destroyed (11) 55 Value Destroyed (441) 441 Prototype IDs (0) 0 Alien Tech Used (0) 0 Bonus (0) 0 TOTAL SCORE: 1096 Bonus ------- None Cogmind --------- Core Integrity 0/250 Matter 138/300 Energy 99/100 System Corruption 0% Temperature Cool (0) Movement Core (50) Location -10/Subcaves Parts ------- > --- POWER (1) -------- (None) > --- PROPULSION (2) --- Subdweller Monowheel > --- UTILITY (2) ------ Subdweller Optics > --- WEAPON (2) ------- (None) > --- INVENTORY (5) ---- Compact Wheel Small Storage Unit Subdweller Optics Peak State ------------ > --- POWER ------------ Light Ion Engine > --- PROPULSION ------- Subdweller Monowheel Subdweller Monowheel > --- UTILITY ---------- Subdweller Optics Subdweller Optics > --- WEAPON ----------- Medium Laser Grenade Launcher > --- INVENTORY -------- Wheel Compact Wheel Small Storage Unit Subdweller Machine Gun [Rating: 11] Favorites ----------- Power Light Ion Engine Engine Light Ion Engine Propulsion Subdweller Monowheel Treads Light Treads Wheel Subdweller Monowheel Utility Subdweller Optics Device Subdweller Optics Weapon Medium Laser Energy Gun Medium Laser Ballistic Gun Battle Rifle Launcher Grenade Launcher Special Weapon Mining Laser Build | -11 -10 -10 -10 ------- Run | Yrd Mat Min Sub Slots Evolved . | . . . . Power . | . . . . Propulsion . | . . . . Utility . | . . . . Weapon . | . . . . Parts Attached 18 | 3 1 1 13 Power 2 | . . . 2 Engine 2 | . . . 2 Core . | . . . . Reactor . | . . . . Propulsion 8 | 2 . . 6 Treads 2 | 2 . . . Leg . | . . . . Wheel 6 | . . . 6 Hover . | . . . . Flight . | . . . . Utility 3 | . . . 3 Device 3 | . . . 3 Storage . | . . . . Processor . | . . . . Hackware . | . . . . Protection . | . . . . Artifact . | . . . . Weapon 5 | 1 1 1 2 Energy Gun 1 | 1 . . . Energy Cannon . | . . . . Ballistic Gun 2 | . . . 2 Ballistic Cannon . | . . . . Launcher 1 | . . 1 . Special Weapon 1 | . 1 . . Impact Weapon . | . . . . Slashing Weapon . | . . . . Piercing Weapon . | . . . . Special Melee Weapon . | . . . . Unidentified Prototypes . | . . . . Parts Lost 8 | . . . 8 Power 1 | . . . 1 Propulsion 3 | . . . 3 Utility . | . . . . Weapon 4 | . . . 4 Highest Loss Streak 5 | . . . 5 To Critical Strikes . | . . . . Average Slot Usage (%) 78 | . 51 57 81 Engine 6 | . . . 7 Treads 8 | . 28 28 6 Wheel 18 | . . . 20 Device 20 | . . . 22 Energy Gun 9 | . 14 14 9 Ballistic Gun 4 | . . . 5 Launcher 8 | . . 3 9 Special Weapon 1 | . 8 10 . Peak Build Rating 11 | 3 4 4 11 Average Rating 8 | 2 3 4 8 On Entrance 2 | . 3 4 4 Naked Turns . | . . . . Heaviest Build 12 | 2 3 5 12 Greatest Support 40 | 3 3 3 40 Greatest Overweight (x) 3 | . . 1 3 Average Overweight (x) . | . . . . Largest Inventory Capacity 5 | 5 5 5 5 Average Capacity 5 | 5 5 5 5 Most Carried 5 | 4 5 5 5 Average Carried 4 | 2 4 5 4 Final Capacity 5 | 5 5 5 5 Final Carried 5 | 4 5 5 3 Class Distribution -------------------- 51% | Mutant 48% | Scavenger-Mutant Dominant Class ---------------- Mutant | -10/Materials Mutant | -10/Mines Scavenger-Mutant | -10/Subcaves Resources | -11 -10 -10 -10 ----------- Run | Yrd Mat Min Sub Matter Collected 468 | 163 . . 305 Remotely . | . . . . Salvage Created 367 | . . . 367 Parts 20 | . . . 20 Haulers Intercepted . | . . . . Recyclers Shooed . | . . . . Parts Field Recycled . | . . . . Retrieved Matter . | . . . . Parts Self-Destructed . | . . . . Prevented . | . . . . Kills | -11 -10 -10 -10 ------- Run | Yrd Mat Min Sub Combat Hostiles Destroyed 11 | . . . 11 Guns 4 | . . . 4 AOE 7 | . . . 7 Classes Destroyed 2 | . . . 2 Grunt 2 | . . . 2 Subdweller 9 | . . . 9 Best Kill Streak 3 | . . . 3 Combat Bots Only 3 | . . . 3 Max Kills in Single Turn 1 | . . . 1 Gunslinging . | . . . . Exploded 1 | . . . 1 Melee . | . . . . Uniques/NPCs Destroyed . | . . . . Combat | -11 -10 -10 -10 -------- Run | Yrd Mat Min Sub Hostile Shots Fired 58 | . . . 58 Missed 22 | . . . 22 Damage Taken 836 | . . . 836 Core 274 | . . . 274 Absorbed by Shields . | . . . . Core Remaining (%) 100 | 100 . . . Volleys Fired 55 | . . 2 53 Largest 2 | . . 1 2 Hottest 80 | . . 30 80 Shots Fired 72 | . . 2 70 Gun 54 | . . . 54 Cannon . | . . . . Launcher 18 | . . 2 16 Special . | . . . . Kinetic 38 | . . . 38 Thermal 16 | . . . 16 Explosive 18 | . . 2 16 Electromagnetic . | . . . . Robot Hit Streak 21 | . . . 21 Robot Miss Streak 2 | . . . 2 Penetration Max . | . . . . Secondary Targets . | . . . . Shots Hit Robots 42 | . . . 42 Core Hits 22 | . . . 22 Critical Kills 1 | . . . 1 Critical Parts Destroyed . | . . . . Critical Strikes 3 | . . . 3 Destroy 3 | . . . 3 Melee Attacks . | . . . . Impact . | . . . . Slashing . | . . . . Piercing . | . . . . Sneak Attacks . | . . . . Combat Hostiles . | . . . . Follow-up Attacks . | . . . . Damage Inflicted 1189 | . . 40 1149 Guns 419 | . . . 419 Cannons . | . . . . Explosions 770 | . . 40 730 Melee . | . . . . Ramming . | . . . . Kinetic 282 | . . . 282 Thermal 137 | . . . 137 Explosive 770 | . . 40 730 Electromagnetic . | . . . . Impact . | . . . . Slashing . | . . . . Piercing . | . . . . Highest Corruption . | . . . . Average Corruption . | . . . . Corruption Purged . | . . . . Corruption Blocked . | . . . . Overload Shots . | . . . . Overflow Damage . | . . . . Projectiles . | . . . . Explosions . | . . . . Melee . | . . . . Knockbacks . | . . . . Impact . | . . . . Kinetic . | . . . . Secondary . | . . . . Self-Inflicted Damage 10 | . . . 10 Shots 1 | . . . 1 Rammed . | . . . . Targets Rammed . | . . . . Kicked . | . . . . Crushed . | . . . . Highest Temperature . | . . . . Average Temperature . | . . . . Received Heat Transfer 195 | . . . 195 Siege Activations . | . . . . Robots Corrupted . | . . . . Combat Hostiles . | . . . . Parts Fried . | . . . . Impact Corruptions . | . . . . Robots Melted . | . . . . Combat Hostiles . | . . . . Parts Melted . | . . . . Heat Transferred 407 | . . . 407 Parts Sabotaged . | . . . . Parts Stolen . | . . . . Parts Stripped . | . . . . Power Chain Reactions . | . . . . Alert | -11 -10 -10 -10 ------- Run | Yrd Mat Min Sub Peak Influence 45 | . 45 22 . Initial 17 | . . 17 . Average 12 | . 17 18 . Maximum Alert Level . | . . . . Low Security (%) 100 | 100 100 100 . Level 1 . | . . . . Level 2 . | . . . . Level 3 . | . . . . Level 4 . | . . . . Level 5 . | . . . . High Security . | . . . . Max Security . | . . . . Squads Dispatched 1 | . 1 . . Investigation . | . . . . Extermination . | . . . . Reinforcement 1 | . 1 . . Assault . | . . . . Garrison . | . . . . Intercept . | . . . . Searches Triggered . | . . . . Construction Impeded . | . . . . Haulers Reinforced . | . . . . Active Scanning Responses . | . . . . Cargo Convoy Interrupts . | . . . . Stealth | -11 -10 -10 -10 --------- Run | Yrd Mat Min Sub Distress Signals 1 | . 1 . . Communications Jammed . | . . . . Distress Signals . | . . . . Times Spotted 20 | . 3 . 17 Peak Tracking Total 4 | . 4 . 4 Tactical Retreats . | . . . . Traps | -11 -10 -10 -10 ------- Run | Yrd Mat Min Sub Traps Triggered 1 | . . . 1 Indirectly . | . . . . Trap Hack Attempts . | . . . . Triggered . | . . . . Disarmed . | . . . . Reprogrammed . | . . . . Reused . | . . . . Traps Extracted . | . . . . Installed . | . . . . Triggered 2 | . . . 2 Machines | -11 -10 -10 -10 ---------- Run | Yrd Mat Min Sub Machines Disabled . | . . . . Max in Single Turn . | . . . . Machines Repaired . | . . . . Machines Dismantled . | . . . . Machines Sabotaged . | . . . . Overloaded Fab Kills . | . . . . Hacking | -11 -10 -10 -10 --------- Run | Yrd Mat Min Sub Machines Accessed . | . . . . Terminals . | . . . . Fabricators . | . . . . Repair Stations . | . . . . Recycling Units . | . . . . Scanalyzers . | . . . . Garrison Access . | . . . . Total Hacks . | . . . . Successful . | . . . . Failed . | . . . . Catastrophic . | . . . . Database Lockouts . | . . . . Manual . | . . . . Terminals . | . . . . Fabricators . | . . . . Repair Stations . | . . . . Recycling Units . | . . . . Scanalyzers . | . . . . Garrison Access . | . . . . Terminal Hacks . | . . . . Fabricator Hacks . | . . . . Repair Station Hacks . | . . . . Recycling Unit Hacks . | . . . . Scanalyzer . | . . . . Garrison Access Hacks . | . . . . Unauthorized Hacks . | . . . . Terminals . | . . . . Fabricators . | . . . . Repair Stations . | . . . . Recycling Units . | . . . . Scanalyzers . | . . . . Garrison Access . | . . . . Data Cores Recovered . | . . . . Used . | . . . . Hacking Detections . | . . . . Full Trace Events . | . . . . Feedback Events . | . . . . Feedback Blocked . | . . . . Robot Schematics Acquired . | . . . . Robots Built . | . . . . Authchips . | . . . . Time . | . . . . Total Robot Build Rating . | . . . . Part Schematics Acquired . | . . . . Parts Built . | . . . . Authchips . | . . . . Time . | . . . . Total Part Build Rating . | . . . . Parts Repaired . | . . . . Time . | . . . . Parts Recycled . | . . . . Recycled Matter . | . . . . Retrieved Matter . | . . . . Retrieved Components . | . . . . Parts Scanalyzed . | . . . . Part Schematics Acquired . | . . . . Parts Damaged . | . . . . Bothacking | -11 -10 -10 -10 ------------ Run | Yrd Mat Min Sub Used RIF Installer . | . . . . Robots Hacked . | . . . . Non-combat . | . . . . Combat . | . . . . Robot Hacks Applied . | . . . . Relay Couplers Released . | . . . . Fabnet Peak Effective % . | . . . . Robots Rewired . | . . . . Allies Hacked . | . . . . Hacks Repelled . | . . . . Allies | -11 -10 -10 -10 -------- Run | Yrd Mat Min Sub Total Allies . | . . . . Largest Group . | . . . . Highest-Rated Group . | . . . . Highest-Rated Ally . | . . . . Total Orders . | . . . . Ally Attacks . | . . . . Total Damage . | . . . . Kills . | . . . . Allies Corrupted . | . . . . Allies Melted . | . . . . Intel | -11 -10 -10 -10 ------- Run | Yrd Mat Min Sub Robot Analysis Total . | . . . . Derelict Logs Recovered . | . . . . Drone Launches . | . . . . Drone Recoveries . | . . . . Exploration | -11 -10 -10 -10 ------------- Run | Yrd Mat Min Sub Turns Passed 845 | 36 49 43 717 Spaces Moved 761 | 56 92 67 546 Core 369 | 56 92 67 154 Treads . | . . . . Legs . | . . . . Wheels 392 | . . . 392 Hover . | . . . . Flight . | . . . . Fastest Speed 50 | 50 50 50 50 Average Speed 87 | 50 50 56 101 Slowest Speed 200 | 50 50 100 200 Overloaded Moves . | . . . . Propulsion Burnouts . | . . . . Robots Hopped . | . . . . Cave-ins Triggered . | . . . . Exploration Rate (%) 22 | 4 27 19 38 Regions Visited 3 Branch Regions 2 Pre-discovered Areas . | . . . . Known Exits Taken . | . . . . Unknown Exits Taken 3 | 1 1 1 . Scrap Searched . | . . . . Spaces Dug . | . . . . Terrain Destroyed 88 | . . 10 78 Melee . | . . . . Projectile 1 | . . . 1 AOE 87 | . . 10 77 Terrain Rammed . | . . . . Walls Destroyed . | . . . . Machines Disabled . | . . . . Actions | -11 -10 -10 -10 --------- Run | Yrd Mat Min Sub Total 869 | 62 93 69 645 Wait 24 | . . . 24 Move 758 | 55 91 66 546 Hop . | . . . . Pick Up 7 | 4 1 . 2 Fast Attach 10 | 3 1 . 6 Attach 4 | . . . 4 Detach . | . . . . Swap 4 | . . 1 3 Drop 7 | . . . 7 Fire 55 | . . 2 53 Melee . | . . . . Ram . | . . . . Kick . | . . . . Crush . | . . . . Escape Stasis . | . . . . Rewire . | . . . . Trap . | . . . . Miscellaneous . | . . . . Route ------- -11/Scrapyard -10/Materials -10/Mines -10/Subcaves (discovered 2 exits: [*Mat x2]) History --------- Turn | Location | Event 11 | -11/Scrapyard | Discovered new exit (range 15) 37 | -11/Scrapyard | Entered Materials 82 | -10/Materials | Discovered new exit (range 8) 86 | -10/Materials | Entered Mines 95 | -10/Mines | Assembled infested the area 119 | -10/Mines | Discovered new exit (range 10) 129 | -10/Mines | Entered Subcaves 236 | -10/Subcaves | Shifting Twisted Machinery released Sub. Machine Gun 236 | -10/Subcaves | Shifting Twisted Machinery released Slug Cannon 236 | -10/Subcaves | Discovered new exit (range 9) 308 | -10/Subcaves | Build established: Mutant 350 | -10/Subcaves | Discovered new exit (range 18) 606 | -10/Subcaves | Core integrity fell below 50% 640 | -10/Subcaves | Lost 5 parts (1p2n2w) 706 | -10/Subcaves | Core integrity fell below 20% 830 | -10/Subcaves | A Subdweller sparked back to life 830 | -10/Subcaves | A Subdweller sparked back to life 830 | -10/Subcaves | A Subdweller sparked back to life 846 | -10/Subcaves | Destroyed by Subdweller Shrapnel Launcher Last Messages --------------- 00715_ Acquired 35 matter. 00722_ Acquired Sub. Power Source. 00724_ Acquired 58 matter. 00751_ Subatomizers dissect the Disposable Heat Sink. 00760_ Triggered Piercing Trap. 00760_ Spikes shoot up from the floor. 00761_ Subatomizers dissect the Disposable Heat Sink. 00830_ KZ-Z27(R) creaks and sparks as it begins to move. 00830_ MA-YPL(R) creaks and sparks as it begins to move. 00830_ ZE-P3F(R) creaks and sparks as it begins to move. 00830_ Wheel destroyed. 00832_ Battle Rifle destroyed. 00832_ Dropped Sub. Power Source. 00833_ Dropped Broken Sub. Optics. 00846_ 8L-BTC(R) destroyed. Map ----- +----------------------------------------------------+ | # ### #? #??????????????????????????? | | # ####### ### #??????????????????????????? | | # #### ## ## ## #??????????????????????????? | | ## ######??????????????????????????? | | ?# ### ## #???????????????????????????????? | | ?????## ### ##???????????????????????????????? | | ?????## ### ##????????????????????????????????? | | ?????# #### ##?????????????????????????????????? | | ?????## ###??????????????????????????????????? | | ####?## ##????????????????????????????????????? | | # ## ##?????????????????????????????????????? | | ######??????????????????????????????????? | | " & #??????????????????????????????????? | | # " ""#??????????????????????????????????? | | #### " #??????????????????????????????????? | | ????# !* "#??????????????????????????????????? | | ?????## # ""#?????????????????????????????????## | | ?????# ######?????????????????????????????????# | | ?????# #?????????????????????????????????# | | ??# " ## #" #?###########??????????????????#### | | ??# "" ?##" #### # ##;##?###?######??????# | | ??# #" ??# # # ### ### ##????# | | ?# """### # & #????# | | ?# "#"""" " ## #?????## | | # """""" # #??????### | | "?""""""" #@ ;# ##???????### | | ""???""" """ " # ; ;#### #?????????? | | ??????""#" ""## # ## ;; ; ??###"" #?????????? | | ????????# " ###### #; ; ????#"" #######???? | | ????????## #????######;;%&; ????#""## #???? | | ???????? ??????????#;;*;;#????#"#### ##???? | | ??????? ?????????? # ##????###?## ##????? | | ??????"# # #?????????? ## #????????## #?????? | | ???????####?????????? ?# #???????## #?????? | | ????????????????????? ?? ???????# ##????? | | ????????????????????##?? ???????# #????? | | ????????????????????????## ???????# #????? | | ?????????????????????????? ???????##" #????? | | ?????????????????????????? ????????#" ##???? | | ?????????????????????????? ????????#" ##### | | ??????????????????????????""??? " # | | ???????????????????????????????## "" ###### | | ????????????????????????????????## #?????## | | ?????????????????????????????????# ???????# | | ?????????????????????????????????##????????# ### | | ???????????????????????????????????????????###?# | | ??????????????????????????????????????????????# | | ??????????????????????????????????????????????# | | ??????????????????????????????????????????????# | | ??????????????????????????????????????????????# | +----------------------------------------------------+ Best States ------------- Heat Dissipation 25 Energy Generation 15 Energy Capacity 200 Matter Stores 253 Matter Capacity 300 Sight Range 21 Terrain Scan Density 10 Evasion (%) 50 Item Schematics ----------------- None Robot Schematics ------------------ None Fabricated ------------ Nothing Alien Tech Used ----------------- None Achievements -------------- None Challenges ------------ None Game ------ Seed GreatPowerDrive Manual? 0 Play Time 00:05:57 Cumulative 115.8 hours Start 2025.01.03 @ 09:26:48 End 2025.01.03 @ 09:32:22 Sessions 1 Manual Loads 0 Difficulty Rogue Special Mode Winter2021/Sauler Game No. 137 Rogue 137 Adventurer 0 Explorer 0 Win Type - Total 1 Types 1/0/0/0/0/0/0/0/0 Lore% 48 Gallery% 66 Achievement% 52 Wizard Run 0 Options --------- Layout 1 ASCII 0 Keyboard 0 Movement Numpad Keybinds 0 Fullscreen 1 Font 24/Smallcaps Map View 50x35 Zoom Use 0% Tactical HUD 1 Map Filters NONE Filters NONE Steam 1 RUN: a506bca3-61e4-4b56-a024-49fe50a21942